fUSD/lending_fUSD_20250115
["ID","MTS","AMOUNT","RATE_DAILY","PERIOD"]
[348972967,1736905836662,-1025.65,0.00016572,2]
[348972968,1736905836672,-500.0,0.00016572,2]
[348972969,1736905836681,-500.0,0.00016572,2]
[348972970,1736905836691,-500.0,0.00016572,2]
[348972971,1736905836701,-500.0,0.00016572,2]
[348972972,1736905836711,-1051.98,0.00016572,2]
[348972973,1736905836721,-500.0,0.00016572,2]
[348972974,1736905836732,-500.0,0.00016572,2]
[348972975,1736905836742,-743.83,0.00016582,2]
[348972976,1736905836751,-347.5925584,0.0001659,2]
[348972977,1736905836763,-363.4967,0.000167,2]
[348972978,1736905836773,-1058.0,0.00016709,2]
[348972979,1736905836782,-500.0,0.00016711,2]
[348972980,1736905836792,-500.0,0.00016711,2]
[348972981,1736905836803,-500.0,0.00016711,2]
[348972982,1736905836813,-782.64,0.00016711,2]
[348972983,1736905836822,-884.62,0.00016711,2]
[348972984,1736905836832,-500.0,0.00016711,2]
[348972985,1736905836844,-1900.0,0.00016712,2]
[348972986,1736905836854,-700.0,0.00016712,2]
[348972987,1736905836863,-175.84,0.00016712,2]
[348972988,1736905836875,-2712.3,0.00016736,2]
[348972989,1736905836885,-55555.0,0.00016746,2]
[348972990,1736905836895,-2712.3,0.0001679,2]
[348972991,1736905836905,-2712.3,0.0001679,2]
[348972992,1736905836915,-20971.180522,0.000168,2]
[348972999,1736905838318,-500.0,0.00016024,2]
[348973000,1736905838328,-500.0,0.00016298,2]
[348973001,1736905838337,-500.0,0.00016572,2]
[348973002,1736905838349,-2673.9,0.000168,2]
[348973004,1736905838360,-9763.4,0.000168,2]
[348973006,1736905838372,-1602.17458816,0.000168,2]
[348973007,1736905838384,-1072.35,0.000168,2]
[348973008,1736905838478,-2509.50399597,0.000168,2]
[348973009,1736905838491,-4827.74473643,0.000168,2]
[348973010,1736905838625,-584.97850091,0.000168,2]
[348973011,1736905838636,-500.0,0.000168,2]
[348973012,1736905838647,-811.351313,0.000168,2]
[348973013,1736905838658,-17197.2945483,0.000168,2]
[348973031,1736905840451,-3002.84950921,0.000168,2]
[348973033,1736905840464,-3062.621001,0.000168,2]
[348973034,1736905840478,-374.72023796,0.000168,2]
[348973035,1736905840736,-4962.30892559,0.000168,2]
[348973036,1736905840755,-11469.925408,0.000168,2]
[348973037,1736905840769,-614.0792943,0.000168,2]
[348973038,1736905840783,-1460.11238991,0.000168,2]
[348973039,1736905840797,-2593.39761243,0.000168,2]
[348973040,1736905840811,-1037.25251515,0.000168,2]
[348973041,1736905840823,-683.52260615,0.000168,2]
[348973042,1736905840837,-443.19153326,0.000168,2]
[348973043,1736905840865,-1836.6,0.000168,2]
[348973044,1736905840879,-277.71,0.000168,2]
[348973045,1736905840993,-11401.6306497,0.000168,2]
[348973085,1736905843506,-821.88984461,0.000168,2]
[348973086,1736905843518,-356.7232,0.000168,2]
[348973087,1736905843529,-490.44403302,0.000168,2]
[348973088,1736905843541,-97529.14303494,0.000168,2]
[348973089,1736905843551,-158.53,0.00016801,2]
[348973090,1736905843561,-628.0,0.00016813,2]
[348973091,1736905843570,-152.0,0.00016816,5]
[348973092,1736905843579,-347.5925584,0.00016831,2]
[348973093,1736905843588,-151.96,0.00016836,2]
[348973094,1736905843600,-500.0,0.00016845,2]
[348973095,1736905843610,-500.0,0.00016845,2]
[348973096,1736905843619,-500.0,0.00016846,2]
[348973103,1736905843766,-500.0,0.00016846,2]
[348973105,1736905843783,-161.764666,0.00016846,2]
[348973107,1736905843793,-500.0,0.00016846,2]
[348973109,1736905843803,-500.0,0.00016846,2]
[348973111,1736905843813,-98.50576025,0.00016846,2]
[348973114,1736905843831,-272.53316423,0.00015473,2]
[348973116,1736905843843,-109.05868577,0.00015473,2]
[348973118,1736905843860,-401.49423975,0.00016846,2]
[348973119,1736905843870,-279.331322,0.00016846,2]
[348973120,1736905843879,-500.0,0.00016846,2]
[348973121,1736905843889,-402.61,0.00016846,2]
[348973122,1736905843898,-554.47215262,0.00016846,2]
[348973123,1736905843907,-500.0,0.00016846,2]
[348973124,1736905843917,-500.0,0.00016846,2]
[348973125,1736905843926,-500.0,0.00016846,2]
[348973126,1736905843936,-500.0,0.00016846,2]
[348973127,1736905843947,-500.0,0.00016846,2]
[348973128,1736905843957,-500.0,0.00016846,2]
[348973129,1736905843966,-500.0,0.00016846,2]
[348973130,1736905843975,-503.37,0.00016846,2]
[348973131,1736905843985,-500.0,0.00016846,2]
[348973132,1736905843993,-824.2,0.00016846,2]
[348973133,1736905844002,-1025.65,0.00016846,2]
[348973134,1736905844013,-500.0,0.00016846,2]
[348973135,1736905844022,-500.0,0.00016846,2]
[348973136,1736905844032,-500.0,0.00016846,2]
[348973137,1736905844041,-500.0,0.00016846,2]
[348973138,1736905844050,-1051.98,0.00016846,2]
[348973139,1736905844060,-500.0,0.00016846,2]
[348973140,1736905844070,-500.0,0.00016846,2]
[348973141,1736905844079,-500.0,0.00016846,2]
[348973143,1736905844089,-743.83,0.00016856,2]
[348973144,1736905844103,-500.0,0.00016873,2]
[348973145,1736905844112,-2118.65,0.00016922,2]
[348973147,1736905844122,-150.99,0.00016922,2]
[348973148,1736905844131,-9999.99,0.00016922,2]
[348973149,1736905844142,-1990.25,0.00016922,2]
[348973150,1736905844152,-193.04200685,0.00016985,2]
[348973151,1736905844162,-500.0,0.00016985,2]
[348973152,1736905844172,-500.0,0.00016985,2]
[348973153,1736905844181,-782.64,0.00016985,2]
[348973154,1736905844192,-884.62,0.00016985,2]
[348973155,1736905844202,-500.0,0.00016985,2]
[348973156,1736905844210,-250.0,0.00017,10]
[348973157,1736905844220,-5000.00457257,0.00017,3]
[348973158,1736905844229,-3203.42717718,0.00017,2]
[348973159,1736905844238,-2085.0,0.00017,2]
[348973160,1736905844247,-392.0,0.00017,2]
[348973161,1736905844257,-7184.09452579,0.00017,2]
[348973162,1736905844270,-22962.09038652,0.00017,2]
[348973163,1736905844286,-15804.81508769,0.00017,2]
[348973164,1736905844295,-700.0,0.00017,2]
[348973165,1736905844305,-166.81,0.00017017,2]
[348973166,1736905844314,-347.5925584,0.00017072,2]
[348973167,1736905844324,-152.0,0.00017095,6]
[348973168,1736905844333,-500.0,0.00017119,2]
[348973169,1736905844343,-500.0,0.00017119,2]
[348973170,1736905844354,-500.0,0.0001712,2]
[348973171,1736905844363,-506.39674712,0.0001712,2]
[348973172,1736905844373,-161.764666,0.0001712,2]
[348973173,1736905844382,-500.0,0.0001712,2]
[348973174,1736905844391,-500.0,0.0001712,2]
[348973175,1736905844402,-500.0,0.0001712,2]
[348973176,1736905844413,-279.331322,0.0001712,2]
[348973177,1736905844422,-500.0,0.0001712,2]
[348973178,1736905844433,-402.61,0.0001712,2]
[348973179,1736905844442,-500.0,0.0001712,2]
[348973180,1736905844452,-500.0,0.0001712,2]
[348973181,1736905844462,-517.92473089,0.0001712,2]
[348973182,1736905844470,-231.15471636,0.0001712,2]
[348973183,1736905844480,-500.0,0.0001712,2]
[348973184,1736905844490,-500.0,0.0001712,2]
[348973185,1736905844499,-500.0,0.0001712,2]
[348973186,1736905844508,-503.37,0.0001712,2]
[348973187,1736905844518,-500.0,0.0001712,2]
[348973188,1736905844528,-824.2,0.0001712,2]
[348973189,1736905844537,-1025.65,0.0001712,2]
[348973190,1736905844545,-500.0,0.0001712,2]
[348973192,1736905844554,-500.0,0.0001712,2]
[348973194,1736905844564,-500.0,0.0001712,2]
[348973196,1736905844573,-500.0,0.0001712,2]
[348973198,1736905844582,-1051.98,0.0001712,2]
[348973200,1736905844592,-500.0,0.0001712,2]
[348973202,1736905844604,-500.0,0.0001712,2]
[348973204,1736905844613,-500.0,0.0001712,2]
[348973205,1736905844622,-250.0,0.00017123,2]
[348973206,1736905844632,-743.83,0.0001713,2]
[348973207,1736905844641,-500.0,0.00017259,2]
[348973208,1736905844652,-500.0,0.00017259,2]
[348973209,1736905844661,-782.64,0.00017259,2]
[348973210,1736905844670,-884.62,0.00017259,2]
[348973211,1736905844679,-500.0,0.00017259,2]
[348973212,1736905844689,-347.5925584,0.00017314,2]
[348973213,1736905844699,-152.0,0.00017374,7]
[348973214,1736905844708,-8132.56320315,0.00017382,2]
[348973215,1736905844718,-500.0,0.00017393,2]
[348973216,1736905844727,-500.0,0.00017393,2]
[348973217,1736905844737,-500.0,0.00017394,2]
[348973218,1736905844746,-161.764666,0.00017394,2]
[348973219,1736905844755,-500.0,0.00017394,2]
[348973220,1736905844767,-500.0,0.00017394,2]
[348973221,1736905844777,-500.0,0.00017394,2]
[348973222,1736905844788,-279.331322,0.00017394,2]
[348973223,1736905844798,-500.0,0.00017394,2]
[348973224,1736905844807,-402.61,0.00017394,2]
[348973225,1736905844816,-500.0,0.00017394,2]
[348973226,1736905844826,-500.0,0.00017394,2]
[348973227,1736905844836,-500.0,0.00017394,2]
[348973228,1736905844845,-307.99183556,0.00017394,2]
[348973229,1736905844854,-503.37,0.00017394,2]
[348973230,1736905844863,-500.0,0.00017394,2]
[348973231,1736905844872,-549.48585278,0.00017394,2]
[348973232,1736905844881,-824.2,0.00017394,2]
[348973233,1736905844891,-1025.65,0.00017394,2]
[348973234,1736905844900,-500.0,0.00017394,2]
[348973235,1736905844909,-500.0,0.00017394,2]
[348973236,1736905844919,-500.0,0.00017394,2]
[348973237,1736905844928,-500.0,0.00017394,2]
[348973238,1736905844937,-1051.98,0.00017394,2]
[348973239,1736905844946,-405.82128604,0.00017394,2]
[348973240,1736905844955,-500.0,0.00017394,2]
[348973241,1736905844965,-500.0,0.00017394,2]
[348973242,1736905844974,-3275.40053324,0.000174,15]
[348973243,1736905844984,-2467.0,0.000174,2]
[348973244,1736905844993,-743.83,0.00017404,2]
[348973245,1736905845002,-1000.0,0.00017421,2]
[348973246,1736905845011,-500.0,0.00017489,2]
[348973247,1736905845021,-7462.62,0.000175,2]
[348973248,1736905845030,-10000.0,0.00017522,2]
[348973249,1736905845039,-614.8318575,0.00017533,2]
[348973250,1736905845049,-500.0,0.00017533,2]
[348973251,1736905845058,-782.64,0.00017533,2]
[348973252,1736905845068,-884.62,0.00017533,2]
[348973253,1736905845077,-500.0,0.00017533,2]
[348973254,1736905845086,-999.0,0.00017534,8]
[348973255,1736905845095,-1058.0,0.00017545,2]
[348973256,1736905845104,-347.5925584,0.00017555,2]
[348973257,1736905845113,-500.0,0.00017589,2]
[348973258,1736905845123,-500.0,0.00017589,2]
[348973259,1736905845133,-500.0,0.000176,18]
[348973260,1736905845144,-152.0,0.00017653,8]
[348973261,1736905845153,-500.0,0.00017667,2]
[348973262,1736905845163,-500.0,0.00017667,2]
[348973263,1736905845173,-500.0,0.00017668,2]
[348973264,1736905845183,-500.0,0.00017668,2]
[348973265,1736905845194,-261.96149816,0.00017668,2]
[348973266,1736905845204,-500.0,0.00017668,2]
[348973267,1736905845213,-500.0,0.00017668,2]
[348973268,1736905845223,-402.61,0.00017668,2]
[348973269,1736905845233,-500.0,0.00017668,2]
[348973270,1736905845243,-500.0,0.00017668,2]
[348973271,1736905845256,-500.0,0.00017668,2]
[348973272,1736905845267,-503.37,0.00017668,2]
[348973273,1736905845279,-500.0,0.00017668,2]
[348973274,1736905845290,-824.2,0.00017668,2]
[348973275,1736905845299,-1025.65,0.00017668,2]
[348973276,1736905845310,-500.0,0.00017668,2]
[348973277,1736905845320,-500.0,0.00017668,2]
[348973278,1736905845329,-593.0152173,0.00017668,2]
[348973279,1736905845338,-500.0,0.00017668,2]
[348973280,1736905845347,-1051.98,0.00017668,2]
[348973281,1736905845357,-500.0,0.00017668,2]
[348973282,1736905845367,-500.0,0.00017668,2]
[348973283,1736905845375,-743.83,0.00017678,2]
[348973284,1736905845389,-500.0,0.00017689,2]
[348973285,1736905845399,-500.0,0.00017689,2]
[348973286,1736905845409,-500.0,0.00017689,2]
[348973287,1736905845418,-500.0,0.00017689,2]
[348973288,1736905845427,-500.0,0.00017689,2]
[348973289,1736905845437,-500.0,0.00017689,2]
[348973290,1736905845447,-347.5925584,0.00017797,2]
[348973291,1736905845456,-777.87,0.00017806,2]
[348973292,1736905845465,-772.32,0.00017806,2]
[348973293,1736905845475,-152.04,0.00017806,2]
[348973294,1736905845484,-441.04,0.00017806,2]
[348973295,1736905845494,-500.0,0.00017807,2]
[348973296,1736905845502,-782.64,0.00017807,2]
[348973297,1736905845511,-884.62,0.00017807,2]
[348973298,1736905845519,-500.0,0.00017807,2]
[348973299,1736905845529,-500.0,0.00017808,2]
[348973300,1736905845538,-1900.0,0.00017808,2]
[348973301,1736905845550,-700.0,0.00017808,2]
[348973302,1736905845560,-350.0,0.00017808,2]
[348973303,1736905845570,-160.41821143,0.00017821,7]
[348973304,1736905845582,-20000.0,0.00017822,2]
[348973305,1736905845593,-508.34,0.00017825,2]
[348973306,1736905845612,-447.07613188,0.00017873,2]
[348973307,1736905845621,-790.1725,0.00017888,7]
[348973308,1736905845631,-200.03853357,0.00017899,5]
[348973309,1736905845640,-9064.30545507,0.00017899,2]
[348973310,1736905845649,-9064.30545507,0.000179,2]
[348973311,1736905845661,-219.34742336,0.000179,2]
[348973312,1736905845671,-83177.52753525,0.000179,2]
[348973313,1736905845680,-167.08040374,0.000179,2]
[348973314,1736905845690,-477.58137361,0.000179,2]
[348973315,1736905845699,-165.70471759,0.000179,2]
[348973316,1736905845709,-277.2594933,0.000179,2]
[348973317,1736905845719,-9064.30545507,0.000179,2]
[348973318,1736905845728,-4449.01029973,0.000179,2]
[348973319,1736905845737,-1019.36054707,0.000179,3]
[348973320,1736905845747,-194.61,0.00017908,2]
[348973321,1736905845756,-152.0,0.00017932,9]
[348973322,1736905845766,-500.0,0.00017941,2]
[348973323,1736905845775,-500.0,0.00017941,2]
[348973324,1736905845784,-500.0,0.00017942,2]
[348973325,1736905845793,-500.0,0.00017942,2]
[348973326,1736905845803,-500.0,0.00017942,2]
[348973327,1736905845812,-500.0,0.00017942,2]
[348973328,1736905845822,-402.61,0.00017942,2]
[348973329,1736905845831,-500.0,0.00017942,2]
[348973330,1736905845840,-500.0,0.00017942,2]
[348973331,1736905845850,-500.0,0.00017942,2]
[348973332,1736905845859,-503.37,0.00017942,2]
[348973333,1736905845869,-500.0,0.00017942,2]
[348973334,1736905845878,-824.2,0.00017942,2]
[348973335,1736905845888,-1025.65,0.00017942,2]
[348973336,1736905845897,-500.0,0.00017942,2]
[348973337,1736905845906,-500.0,0.00017942,2]
[348973338,1736905845916,-500.0,0.00017942,2]
[348973339,1736905845926,-1051.98,0.00017942,2]
[348973340,1736905845935,-500.0,0.00017942,2]
[348973341,1736905845945,-500.0,0.00017942,2]
[348973342,1736905845954,-743.83,0.00017952,2]
[348973343,1736905845964,-500.0,0.00017973,2]
[348973344,1736905845974,-500.0,0.00017973,2]
[348973345,1736905845983,-500.0,0.00017973,2]
[348973346,1736905845992,-187.76362094,0.00017973,2]
[348973347,1736905846001,-216.3154407,0.00017988,2]
[348973348,1736905846011,-216.3154407,0.00017988,2]
[348973349,1736905846020,-216.3154407,0.00017988,2]
[348973350,1736905846029,-519.9619803,0.00017988,2]
[348973351,1736905846038,-519.9619803,0.00017988,2]
[348973352,1736905846047,-519.9619803,0.00017988,2]
[348973353,1736905846056,-150.0,0.00017999,2]
[348973354,1736905846066,-78359.39,0.00017999,2]
[348973356,1736905846075,-668.07395482,0.00017999,2]
[348973358,1736905846083,-500.0,0.00017999,2]
[348973360,1736905846093,-181.39186706,0.00017999,2]
[348973361,1736905846104,-57118.5128137,0.00018,5]
[348973362,1736905846113,-6567.59847545,0.00018,2]
[348973363,1736905846122,-32000.0,0.00018,3]
[348973364,1736905846135,-1133.69359136,0.00018,2]
[348973365,1736905846147,-1031.90973375,0.00018,2]
[348973366,1736905846156,-5606.96790568,0.00018,2]
[348973367,1736905846165,-1500.0,0.00018,8]
[348973368,1736905846175,-330.09243572,0.00018,5]
[348973369,1736905846184,-132343.81998448,0.00018,3]
[348973370,1736905846228,-41537.83613638,0.00018,2]
[348973371,1736905846238,-250.0,0.00018,10]
[348973372,1736905846248,-2085.0,0.00018,2]
[348973373,1736905846258,-30000.0,0.00018,3]
[348973375,1736905846267,-30000.0,0.00018,3]
[348973376,1736905846276,-30000.0,0.00018,3]
[348973377,1736905846286,-2367.689719,0.00018,3]
[348973378,1736905846295,-3443.32,0.00018,2]
[348973381,1736905846304,-1537404.17894076,0.00018,2]
[348973382,1736905846439,-501.41876286,0.00016024,2]
[348973384,1736905846449,-149693.29502698,0.00018,2]
[348973385,1736905846460,-4086.86656933,0.00018,2]
[348973386,1736905846473,-1522.9792,0.00018,2]
[348973387,1736905846630,-2798.1,0.00018,2]
[348973388,1736905846641,-7073.99502447,0.00018,2]
[348973389,1736905846822,-336.41679904,0.00018,2]
[348973391,1736905846833,-363.33316937,0.00018,2]
[348973394,1736905907839,453.93,0.00018,30]
[348973398,1736906676300,-300.0,9.998e-05,2]
[348973399,1736906676323,-623.8288941,9.999e-05,2]
[348973400,1736906676347,-500.0,9.999e-05,2]
[348973401,1736906676370,-512.11296276,9.999e-05,2]
[348973402,1736906676396,-1016.21981417,9.999e-05,2]
[348973403,1736906676419,-519.26023447,9.999e-05,2]
[348973404,1736906676442,-509.10677388,9.999e-05,2]
[348973405,1736906676467,-500.0,9.999e-05,2]
[348973406,1736906676493,-500.0,9.999e-05,2]
[348973468,1736907032574,-1979.46335,0.00010162,4]
[348973469,1736907032586,-550.62852736,0.00010162,4]
[348973470,1736907032763,-5199.96246879,0.00010162,4]
[348973471,1736907032772,-157.95,0.00012329,2]
[348973472,1736907032782,-1058.0,0.0001261,2]
[348973473,1736907032792,-158.53,0.00013034,2]
[348973474,1736907032801,-1058.0,0.00013274,2]
[348973475,1736907032812,-1058.0,0.00013937,2]
[348973476,1736907032821,-200.0,0.00014909,2]
[348973477,1736907032830,-250.0,0.00014912,2]
[348973478,1736907032840,-188.08,0.00014945,2]
[348973479,1736907032849,-233.19340516,0.00014966,2]
[348973480,1736907032857,-500.0,0.00014969,2]
[348973481,1736907032866,-233.19340516,0.0001497,2]
[348973482,1736907032876,-233.19340516,0.00014976,2]
[348973483,1736907032885,-233.19340516,0.00014987,2]
[348973484,1736907032894,-233.19340516,0.00014995,2]
[348973485,1736907032904,-150.0,0.00015,20]
[348973486,1736907032913,-301.67,0.00015008,2]
[348973487,1736907032922,-250.0,0.00015032,2]
[348973488,1736907032932,-180.34,0.00015038,2]
[348973489,1736907032944,-1100.0,0.00015068,2]
[348973490,1736907032953,-500.0,0.00015068,2]
[348973491,1736907032962,-280.25,0.00015071,2]
[348973492,1736907032971,-982.64,0.00015086,2]
[348973493,1736907032980,-250.0,0.000151,2]
[348973494,1736907032989,-5.35171544,0.0001531,2]
[348973495,1736907033000,-337.06151267,0.0001531,2]
[348973496,1736907033011,-2606.44216162,0.0001531,2]
[348973497,1736907033023,-3538.9389726,0.0001531,2]
[348973498,1736907033034,-877.67563767,0.0001531,2]
[348973499,1736907033044,-516.72,0.0001531,2]
[348973500,1736907033053,-150.99,0.0001531,2]
[348973501,1736907033062,-6053.97,0.0001531,2]
[348973502,1736907033071,-812.17,0.0001531,2]
[348973503,1736907033080,-299.99,0.0001531,2]
[348973504,1736907033090,-172.38,0.00015492,2]
[348973505,1736907033099,-1996.926,0.00015802,2]
[348973506,1736907033108,-2081.525,0.00015924,2]
[348973507,1736907033117,-500.0,0.00015939,2]
[348973508,1736907033127,-500.0,0.00015939,2]
[348973509,1736907033320,-200.0,0.00015939,2]
[348973510,1736907033329,-2000.0,0.00016,2]
[348973511,1736907033337,-2000.0,0.0001601,2]
[348973512,1736907033347,-3685.380654,0.0001602,2]
[348973513,1736907033356,-506.8373847,0.00016024,2]
[348973514,1736907033365,-500.0,0.00016024,2]
[348973515,1736907033375,-500.0,0.00016024,2]
[348973516,1736907033384,-500.0,0.00016024,2]
[348973517,1736907033394,-500.0,0.00016024,2]
[348973518,1736907033403,-500.0,0.00016024,2]
[348973519,1736907033413,-508.67035093,0.00016024,2]
[348973520,1736907033422,-509.98288752,0.00016024,2]
[348973521,1736907033431,-630.87,0.00016024,2]
[348973522,1736907033443,-515.17819038,0.00016024,2]
[348973523,1736907033452,-648.05701888,0.00016024,2]
[348973524,1736907033461,-529.61599443,0.00016024,2]
[348973525,1736907033470,-513.83669752,0.00016024,2]
[348973526,1736907033479,-519.35053861,0.00016024,2]
[348973527,1736907033489,-517.89696968,0.00016024,2]
[348973528,1736907033498,-519.50182383,0.00016024,2]
[348973529,1736907033507,-521.26130272,0.00016024,2]
[348973530,1736907033516,-508.1911224,0.00016024,2]
[348973531,1736907033526,-500.0,0.00016024,2]
[348973532,1736907033535,-522.43542799,0.00016024,2]
[348973533,1736907033547,-518.34179571,0.00016024,2]
[348973534,1736907033556,-524.86762152,0.00016024,2]
[348973535,1736907033568,-516.71172835,0.00016024,2]
[348973536,1736907033577,-520.86953149,0.00016024,2]
[348973537,1736907033586,-527.59148204,0.00016024,2]
[348973538,1736907033595,-500.0,0.00016024,2]
[348973539,1736907033605,-514.69723867,0.00016024,2]
[348973540,1736907033614,-553.04830499,0.00016024,2]
[348973541,1736907033623,-500.0,0.00016024,2]
[348973542,1736907033632,-500.0,0.00016024,2]
[348973543,1736907033645,-500.0,0.00016024,2]
[348973544,1736907033654,-500.0,0.00016024,2]
[348973545,1736907033663,-542.83,0.00016024,2]
[348973546,1736907033673,-500.0,0.00016024,2]
[348973547,1736907033683,-510.85081132,0.00016024,2]
[348973548,1736907033693,-500.0,0.00016024,2]
[348973549,1736907033702,-500.0,0.00016024,2]
[348973550,1736907033712,-500.0,0.00016024,2]
[348973551,1736907033722,-500.0,0.00016024,2]
[348973552,1736907033732,-500.0,0.00016024,2]
[348973553,1736907033741,-500.0,0.00016024,2]
[348973554,1736907033751,-544.7552972,0.00016024,2]
[348973555,1736907033760,-500.0,0.00016024,2]
[348973556,1736907033771,-500.0,0.00016024,2]
[348973557,1736907033783,-500.0,0.00016024,2]
[348973558,1736907033793,-500.0,0.00016024,2]
[348973559,1736907033803,-500.0,0.00016024,2]
[348973560,1736907033813,-500.0,0.00016024,2]
[348973561,1736907033822,-500.0,0.00016024,2]
[348973562,1736907033831,-500.0,0.00016024,2]
[348973563,1736907033840,-500.0,0.00016024,2]
[348973564,1736907033849,-500.0,0.00016024,2]
[348973565,1736907033858,-540.98475087,0.00016024,2]
[348973566,1736907033867,-500.0,0.00016024,2]
[348973567,1736907033876,-500.0,0.00016024,2]
[348973568,1736907033886,-526.16400907,0.00016024,2]
[348973569,1736907033895,-548.45928456,0.00016024,2]
[348973570,1736907033904,-635.60700972,0.00016024,2]
[348973571,1736907033913,-513.61036271,0.00016024,2]
[348973572,1736907033922,-500.0,0.00016024,2]
[348973573,1736907033931,-562.70593519,0.00016024,2]
[348973574,1736907033942,-157.95,0.00016096,2]
[348973575,1736907033953,-9999.99,0.00016116,2]
[348973576,1736907033964,-500.0,0.00016164,2]
[348973577,1736907033974,-822.0,0.0001626,2]
[348973578,1736907033985,-156.02,0.00016277,2]
[348973579,1736907033996,-310.6778149,0.00016298,2]
[348973580,1736907034007,-500.0,0.00016298,2]
[348973581,1736907034018,-500.0,0.00016298,2]
[348973582,1736907034028,-630.87,0.00016298,2]
[348973583,1736907034037,-523.02037697,0.00016298,2]
[348973584,1736907034046,-500.0,0.00016298,2]
[348973585,1736907034053,-500.0,0.00016298,2]
[348973586,1736907034062,-606.38417502,0.00016298,2]
[348973587,1736907034071,-269.11809844,0.00016298,2]
[348973588,1736907034080,-538.99820421,0.00016298,2]
[348973589,1736907034089,-177.92,0.00016298,2]
[348973590,1736907034098,-370.41600986,0.00016298,2]
[348973591,1736907034108,-208.05804504,0.00016298,2]
[348973592,1736907034117,-179.60444013,0.00016298,2]
[348973593,1736907034126,-500.0,0.00016298,2]
[348973594,1736907034135,-264.44,0.00016298,2]
[348973595,1736907034144,-423.35,0.00016298,2]
[348973596,1736907034153,-292.78237953,0.00016298,2]
[348973597,1736907034163,-447.97197899,0.00016298,2]
[348973598,1736907034172,-500.0,0.00016298,2]
[348973599,1736907034181,-500.0,0.00016298,2]
[348973600,1736907034192,-500.0,0.00016298,2]
[348973601,1736907034202,-244.26854958,0.00016298,2]
[348973602,1736907034211,-633.85,0.00016298,2]
[348973603,1736907034220,-500.0,0.00016298,2]
[348973604,1736907034229,-158.53,0.00016343,2]
[348973605,1736907034238,-623.37432423,0.00016437,2]
[348973606,1736907034248,-458.9,0.00016437,2]
[348973607,1736907034257,-1100.0,0.00016438,2]
[348973608,1736907034267,-500.0,0.00016438,2]
[348973609,1736907034276,-150.0,0.00016438,2]
[348973610,1736907034284,-300.0,0.00016457,2]
[348973611,1736907034293,-503.16937046,0.00016571,2]
[348973612,1736907034302,-180.45777547,0.00016571,2]
[348973613,1736907034312,-500.0,0.00016571,2]
[348973614,1736907034321,-500.0,0.00016572,2]
[348973615,1736907034331,-500.0,0.00016572,2]
[348973616,1736907034340,-630.87,0.00016572,2]
[348973617,1736907034349,-500.0,0.00016572,2]
[348973618,1736907034358,-383.51,0.00016572,2]
[348973619,1736907034367,-500.0,0.00016572,2]
[348973620,1736907034376,-606.49,0.00016572,2]
[348973621,1736907034385,-189.35,0.00016572,2]
[348973622,1736907034394,-500.0,0.00016572,2]
[348973623,1736907034403,-175.9,0.00016572,2]
[348973624,1736907034412,-230.06,0.00016582,2]
[348973625,1736907034421,-175.84,0.00016712,2]
[348973626,1736907034430,-500.0,0.00016745,2]
[348973627,1736907034440,-500.0,0.00016745,2]
[348973628,1736907034451,-500.0,0.00016745,2]